bitfinex-derivatives/quotes_ETHF0:USTF0_20250320
["timestamp","ask_amount","ask_price","bid_price","bid_amount"]
[1742478511696,2.37499,1992.2,1992.1,6.15e-06]
[1742478511998,1.00429,1992.2,1992.1,6.61671615]
[1742478512200,1.00429,1992.2,1992.1,6.30780615]
[1742478512595,7.14507,1992.5,1992.1,8.80780615]
[1742478512795,1.00426,1992.3,1992.2,1.371]
[1742478516099,1.00429,1992.2,1992.1,4.92480615]
[1742478516401,2.38389,1992.2,1992.1,4.92480615]
[1742478517292,2.38389,1992.2,1992.1,1.38180615]
[1742478517492,1.00429,1992.2,1992.1,0.68640615]
[1742478517800,1.00429,1992.2,1992.1,1.37190615]
[1742478519496,2.43169,1992.2,1992.1,1.37190615]
[1742478520407,2.43169,1992.2,1992.1,4.90190615]
[1742478520599,1.00429,1992.2,1992.1,4.90190615]
[1742478521408,1.00423,1992.4,1992.1,7.40190615]
[1742478521608,3.2078,1992.5,1992.2,1.4033]
[1742478521905,1.00423,1992.4,1992.3,46.398]
[1742478522097,1.00423,1992.4,1992.3,49.926]
[1742478524010,1.00423,1992.4,1992.3,46.398]
[1742478524213,1.00429,1992.2,1992.1,6.15e-06]
[1742478524413,4.21209,1992.2,1992.1,6.15e-06]
[1742478524803,5.52129,1992.2,1992.1,6.15e-06]
[1742478525103,3.2078,1992.6,1992.1,2.50000615]
[1742478525307,1.00424,1992.3,1992.2,3.03106]
[1742478525505,1.3092,1992.5,1992.3,1.00423]
[1742478525703,1.3092,1992.5,1992.4,1.00419]
[1742478525907,1.3092,1992.5,1992.3,1.00421]
[1742478526307,1.3092,1992.5,1992.2,5.6168]
[1742478526512,1.00424,1992.3,1992.2,5.6168]
[1742478526708,2.0147,1992.5,1992.2,6.62107]
[1742478526903,2.0147,1992.5,1992.3,1.00424]
[1742478527210,2.0147,1992.5,1992.2,5.6168]
[1742478527811,1.00423,1992.4,1992.3,1.00423]
[1742478528105,2.36723,1992.4,1992.3,1.00423]
[1742478528505,1.00424,1992.3,1992.2,6.62105]
[1742478528810,1.363,1992.3,1992.2,6.62105]
[1742478530012,2.36724,1992.3,1992.2,6.62105]
[1742478531300,2.36724,1992.3,1992.2,5.6168]
[1742478531905,2.36724,1992.3,1992.2,2.0268]
[1742478532109,2.36724,1992.3,1992.2,3.03109]
[1742478534209,3.2078,1992.6,1992.2,2.0268]
[1742478534410,1.00415,1992.5,1992.3,3.2078]
[1742478534617,1.00415,1992.5,1992.4,5.85815]
[1742478534920,1.00414,1992.5,1992.4,5.85815]
[1742478535117,1.00419,1992.4,1992.3,46.396]
[1742478536417,6.058,1992.4,1991.3,3.40500679]
[1742478536606,3.2078,1991.8,1991.3,1.82337913]
[1742478536814,1.00454,1991.7,1991.4,4.6174]
[1742478537013,1.00463,1991.6,1991.4,5.9754]
[1742478537215,1.00463,1991.6,1991.4,10.63007]
[1742478537415,2.33198,1991.7,1991.5,1.00464]
[1742478537720,2.33950615,1991.7,1991.6,1.4096]
[1742478539818,1.00464,1991.5,1991.4,0.6518]
[1742478540014,1.0047,1991.4,1991.3,46.40103089]
[1742478540218,2.965,1991.4,1991.3,46.40103089]
[1742478540524,2.3143,1991.4,1991.3,46.40103089]
[1742478541116,2.3143,1991.4,1991.3,47.77613089]
[1742478541623,2.3143,1991.4,1991.3,46.40103089]
[1742478545525,2.3143,1991.4,1991.3,47.40578089]
[1742478545719,0.00752615,1991.7,1991.3,52.56290089]
[1742478546021,1.34872615,1991.7,1991.6,4.21239]
[1742478546321,1.00449,1991.8,1991.6,6.8618]
[1742478546518,1.00449,1991.8,1991.7,1.3172]
[1742478546917,1.00449,1991.8,1991.6,4.65859]
[1742478546918,1.00454,1991.7,1991.6,4.65859]
[1742478547624,1.00459,1991.6,1991.5,2.32179]
[1742478547816,1.00457,1991.7,1991.6,1.00457]
[1742478549219,1.00459,1991.6,1991.5,2.32182]
[1742478550122,0.69422615,1991.8,1991.5,1.3172]
[1742478550513,0.00752615,1991.8,1991.5,1.3172]
[1742478550713,0.00752615,1991.8,1991.7,4.21234]
[1742478550919,1.00437,1992.1,1992.0,1.00439]
[1742478551217,1.00434,1992.1,1992.0,1.00437]
[1742478551423,1.00434,1992.1,1992.0,3.646]
[1742478552126,1.00434,1992.1,1992.0,5.0225]
[1742478552824,1.00434,1992.1,1992.0,3.646]
[1742478553033,1.00434,1992.1,1991.8,2.0502]
[1742478553034,1.00442,1992.0,1991.8,2.0502]
[1742478553225,0.6835,1992.1,1991.8,6.02396]
[1742478553528,1.0733138,1992.0,1991.8,6.02396]
[1742478553730,1.00444,1991.9,1991.8,5.0195]
[1742478554323,1.00444,1991.9,1991.8,6.02399]
[1742478554529,0.0688838,1991.9,1991.8,6.02399]
[1742478555638,1.0733238,1991.9,1991.8,6.02399]
[1742478556124,1.0733238,1991.9,1991.8,5.0195]
[1742478556520,1.0733238,1991.9,1991.8,6.02399]
[1742478556731,1.0733238,1991.9,1991.8,5.0195]
[1742478557228,1.0733238,1991.9,1991.8,6.02399]
[1742478557427,0.0688838,1991.9,1991.6,3.2078]
[1742478557626,1.00459,1991.6,1991.5,9.589]
[1742478557928,9.35032,1991.6,1990.9,3.2078]
[1742478558123,1.00476,1991.3,1991.2,1.00475]
[1742478558327,1.00476,1991.3,1991.0,5.0622]
[1742478558328,1.00472,1991.4,1991.3,1.00471]
[1742478558626,1.00478,1991.3,1991.2,1.00476]
[1742478558822,1.0048,1991.2,1991.1,1.0048]
[1742478559227,0.0688838,1991.4,1991.0,5.06972615]
[1742478559427,0.0688838,1991.2,1991.0,5.06972615]
[1742478560531,0.0688838,1991.1,1991.0,5.06972615]
[1742478561124,3.2078,1992.0,1991.0,7.56972615]
[1742478561326,4.5814,1992.0,1991.4,3.2078]
[1742478561628,1.3736,1992.0,1991.7,3.2078]
[1742478561826,1.3736,1992.0,1991.8,4.9802]
[1742478562030,1.3736,1992.0,1991.9,1.3392]
[1742478562730,0.00752615,1992.2,1991.9,7.7182]
[1742478563034,0.00752615,1992.2,1992.1,3.2078]
[1742478563230,0.00752615,1992.2,1992.1,6.8488]
[1742478563534,11.8706,1992.8,1992.1,8.188]
[1742478563734,11.8706,1992.8,1992.2,46.411]
[1742478563935,11.8706,1992.8,1992.3,1.3307]
[1742478564638,0.00752615,1992.7,1992.4,0.00752615]
[1742478565022,3.2078,1992.6,1992.4,0.00752615]
[1742478565228,1.4066,1992.5,1992.4,0.00752615]
[1742478567226,4.6144,1992.5,1992.4,0.00752615]
[1742478567926,10.7444,1992.5,1991.8,9.593]
[1742478568229,3.2078,1992.2,1991.8,9.593]
[1742478568425,1.321,1992.1,1991.8,3.633]
[1742478568929,0.649,1992.0,1991.8,3.633]
[1742478569122,1.321,1991.9,1991.8,3.64052615]
[1742478570132,1.321,1991.9,1991.8,0.00752615]
[1742478571136,1.321,1991.9,1991.8,1.33282615]
[1742478572034,0.6919,1992.1,1991.8,1.33282615]
[1742478572236,2.1191,1992.1,1991.8,1.33282615]
[1742478572629,2.1191,1992.1,1991.8,0.00752615]
[1742478572829,3.2078,1992.0,1991.8,0.00752615]
[1742478573028,1.3712,1991.9,1991.8,0.00752615]
[1742478574136,1.3712,1991.9,1991.8,1.40812615]
[1742478575832,1.3712,1991.9,1991.8,2.10522615]
[1742478577443,4.3218,1992.3,1991.8,2.10522615]
[1742478577444,0.6948,1992.3,1991.8,4.60522615]
[1742478577637,2.0948,1992.5,1992.1,3.2078]
[1742478577941,2.0948,1992.5,1992.2,5.7214]
[1742478579935,2.0948,1992.5,1992.3,3.2078]
[1742478580244,1.3869,1992.5,1992.4,47.8111]
[1742478581034,1.3869,1992.5,1992.4,46.4]
[1742478582933,1.3869,1992.5,1992.4,47.7973]
[1742478583538,0.00752615,1992.7,1992.4,47.7973]
[1742478583737,0.00752615,1992.7,1992.5,3.614]
[1742478583934,0.00752615,1992.7,1992.6,1.3973]
[1742478584136,0.00752615,1992.7,1992.6,2.0614]
[1742478586240,0.00752615,1992.7,1992.6,3.609]
[1742478586644,0.66832615,1992.7,1992.6,3.609]
[1742478588945,0.66832615,1992.7,1992.6,4.9737]
[1742478589436,0.00752615,1992.7,1992.6,4.9737]
[1742478590344,1.01156615,1992.7,1992.6,4.9737]
[1742478590540,1.01156615,1992.7,1992.6,3.609]
[1742478591141,1.01156615,1992.7,1992.6,4.61309]
[1742478595739,1.01156615,1992.7,1992.6,1.00409]
[1742478595940,1.00414,1992.5,1992.4,46.4]
[1742478596140,1.00414,1992.5,1992.4,47.40419]
[1742478596334,4.21194,1992.5,1992.4,46.4]
[1742478596541,5.62654,1992.5,1992.4,46.4]
[1742478596738,7.13277,1992.5,1992.0,3.584]
[1742478597040,1.00423,1992.4,1992.3,1.00421]
[1742478597236,2.37793,1992.4,1992.3,1.00421]
[1742478598150,1.00427,1992.3,1992.2,1.00425]
[1742478598449,2.37797,1992.3,1992.2,2.32345]
[1742478599738,1.00429,1992.2,1992.1,3.2078]
[1742478599943,2.0754,1992.2,1991.9,49.5968]
[1742478600144,1.71198,1992.1,1992.0,1.00436]
[1742478600343,2.1086,1992.1,1992.0,1.00436]
[1742478600537,1.00439,1992.0,1991.9,46.389]
[1742478600745,5.61319,1992.0,1991.9,46.389]
[1742478603646,5.61319,1992.0,1991.4,1.00469]
[1742478603647,1.0047,1991.5,1991.4,1.00469]
[1742478603849,5.71952,1991.5,1990.9,0.6976]
[1742478604037,5.71952,1991.5,1991.0,1.00487]
[1742478604038,3.2078,1991.3,1991.0,1.00487]
[1742478604251,1.3895,1991.2,1991.1,1.00484]
[1742478604557,1.3895,1991.2,1991.1,7.79964]
[1742478604744,0.00752615,1991.3,1991.1,11.8069]
[1742478604945,0.00752615,1991.3,1991.2,3.7149]
[1742478605748,1.3786,1991.8,1991.5,1.00461]
[1742478606050,1.00459,1991.6,1991.5,3.586]
[1742478606452,1.00459,1991.6,1991.5,44.386]
[1742478607138,2.29629,1991.6,1991.5,45.7691]
[1742478607641,2.29629,1991.6,1991.5,46.77374]
[1742478608348,2.29629,1991.6,1991.5,45.7691]
[1742478608751,1.2917,1991.6,1991.5,46.77374]
[1742478609050,0.00752615,1991.7,1991.6,1.00459]
[1742478609250,0.00752615,1991.7,1991.6,2.38959]
[1742478610750,1.01206615,1991.7,1991.6,2.38959]
[1742478610944,1.38832615,1991.7,1991.6,2.38959]
[1742478611145,1.38832615,1991.7,1991.6,4.57459]
[1742478612046,2.04912615,1991.7,1991.6,4.57459]
[1742478612550,3.05366615,1991.7,1991.6,4.57459]
[1742478612749,0.00752615,1991.7,1991.6,4.57459]
[1742478613350,1.30032615,1991.7,1991.6,4.57459]
[1742478615150,2.5115,1991.6,1991.2,1.00475]
[1742478615457,1.00473,1991.4,1991.3,1.00473]
[1742478615751,1.00478,1991.3,1991.2,1.00476]
[1742478615955,2.43438,1991.3,1991.2,1.00476]
[1742478616455,2.43435,1991.3,1991.2,1.00476]
[1742478618552,1.4296,1991.3,1991.2,1.00476]
[1742478619853,2.43435,1991.3,1991.2,1.00476]
[1742478620957,2.43435,1991.3,1991.1,2.34081]
[1742478621158,1.0048,1991.2,1991.1,1.336]
[1742478621360,2.3762,1991.2,1991.1,2.34081]
[1742478621755,1.3714,1991.2,1991.1,2.34081]
[1742478621961,2.3762,1991.2,1991.1,1.336]
[1742478622666,2.3762,1991.2,1991.1,2.34085]
[1742478622966,1.3714,1991.2,1991.1,2.34085]
[1742478623570,3.17413,1991.6,1991.1,4.5438]
[1742478623764,1.00477,1991.3,1991.2,2.0736]
[1742478623961,1.00477,1991.3,1991.2,5.6116]
[1742478624163,1.00477,1991.3,1991.2,4.9224]
[1742478624562,1.00475,1991.3,1991.2,5.92717]
[1742478624871,1.00475,1991.3,1991.2,4.9224]
[1742478625065,1.00475,1991.3,1991.2,3.538]
[1742478625370,1.00475,1991.3,1991.2,4.5428]
[1742478626070,1.00475,1991.3,1991.2,3.538]
[1742478627062,1.00475,1991.3,1991.2,4.5428]
[1742478627259,1.0048,1991.2,1991.1,2.34181]
[1742478627459,2.9906,1991.2,1991.1,5.87381]
[1742478628062,1.00485,1991.1,1991.0,48.12340615]
[1742478628377,2.33635,1991.1,1991.0,0.00752615]
[1742478629066,2.33635,1991.1,1991.0,1.01242615]
[1742478629369,2.33635,1991.1,1991.0,0.00752615]
[1742478630966,2.51234,1991.0,1990.6,0.7103]
[1742478631171,2.51234,1991.0,1990.7,1.00502]
[1742478631172,1.00503,1990.8,1990.7,1.00502]
[1742478631363,3.00998,1990.9,1990.8,1.005]
[1742478631975,1.005,1990.8,1990.7,2.40061]
[1742478632158,3.0717,1990.8,1990.7,2.40813615]
[1742478632364,3.0717,1990.8,1990.7,1.40312615]
[1742478632563,3.0717,1990.8,1990.7,0.00752615]
[1742478632765,3.0717,1990.8,1990.7,1.01257615]
[1742478633369,1.3531,1990.8,1990.7,1.01257615]
[1742478633771,1.3531,1990.8,1990.7,2.94957615]
[1742478634572,2.3581,1990.8,1990.7,2.94957615]
[1742478634962,2.3581,1990.8,1990.7,1.94452615]
[1742478635367,2.3581,1990.8,1990.7,42.74452615]
[1742478636375,2.3581,1990.8,1990.7,43.74957615]
[1742478636671,2.3581,1990.8,1990.7,1.94452615]
[1742478636972,2.3581,1990.8,1990.7,2.94957615]
[1742478637274,1.3531,1990.8,1990.7,43.74957615]
[1742478637570,3.2078,1991.2,1990.7,45.95232615]
[1742478637768,1.00491,1991.0,1990.9,1.00492]
[1742478637971,1.4265,1991.1,1991.0,1.0049]
[1742478638276,2.43138,1991.1,1991.0,1.0049]
[1742478638475,1.0049,1991.0,1990.9,2.39261]
[1742478638667,2.4314,1991.0,1990.9,2.39261]
[1742478639067,1.00489,1991.1,1991.0,1.0049]
[1742478639269,3.10933,1991.2,1991.1,1.00485]
[1742478639470,3.10933,1991.2,1991.1,3.516]
[1742478640464,6.31713,1991.2,1990.7,42.09992615]
[1742478640670,1.00497,1990.9,1990.8,3.517]
[1742478640976,1.00493,1991.0,1990.9,1.00492]
[1742478641371,1.00493,1991.0,1990.8,3.517]
[1742478641372,1.005,1990.8,1990.7,0.00752615]
[1742478641769,1.005,1990.8,1990.7,1.01257615]
[1742478642076,3.0838,1990.8,1990.7,1.01257615]
[1742478642379,2.0788,1990.8,1990.7,1.01257615]
[1742478642575,3.0838,1990.8,1990.7,1.01257615]
[1742478642876,1.4131,1990.8,1990.7,4.53857615]
[1742478643065,1.67061,1991.0,1990.9,1.00495]
[1742478643270,1.00495,1990.9,1990.8,1.3193]
[1742478643464,1.00495,1990.9,1990.8,2.32426]
[1742478643669,1.00495,1990.9,1990.8,1.3193]
[1742478644268,2.35215,1990.9,1990.8,1.3193]
[1742478644977,1.005,1990.8,1990.7,4.53855615]
[1742478645179,2.3522,1990.8,1990.7,52.28385615]
[1742478646070,2.3522,1990.8,1990.7,46.43352615]
[1742478646276,2.3522,1990.8,1990.7,50.95557615]
[1742478646466,2.3522,1990.8,1990.7,47.43857615]
[1742478646669,1.3472,1990.8,1990.7,47.43857615]
[1742478646871,2.3522,1990.8,1990.7,47.43857615]
[1742478647878,2.3522,1990.8,1990.7,48.79287615]
[1742478649475,1.3472,1990.8,1990.7,48.79287615]
[1742478649782,1.00499,1990.9,1990.8,1.005]
[1742478649976,1.00499,1990.9,1990.8,5.9142]
[1742478650372,2.42049,1990.9,1990.8,3.51]
[1742478651775,1.005,1990.8,1990.7,46.43352615]
[1742478651976,1.00525,1990.4,1990.2,51.7498]
[1742478652176,2.30765,1990.3,1990.2,50.6411]
[1742478652469,2.30765,1990.3,1990.2,47.4333]
[1742478653167,2.96095,1990.3,1990.2,46.428]
[1742478655272,1.00556,1989.8,1989.7,1.0055]
[1742478655873,1.00555,1989.7,1989.6,2.38118]
[1742478656073,2.30385,1989.7,1989.6,1.00558]
[1742478657177,2.30388,1989.7,1989.6,1.0056]
[1742478657576,1.2983,1989.7,1989.6,1.0056]
[1742478657776,1.3808,1989.9,1989.8,1.0055]
[1742478657777,0.6737,1989.9,1989.8,1.0055]
[1742478657975,2.35865,1990.0,1989.9,1.00542]
[1742478658481,4.21313,1990.2,1990.1,1.00535]
[1742478658681,3.87052615,1990.4,1990.0,47.853]
[1742478658876,1.00527,1990.3,1990.2,1.00525]
[1742478659184,1.00527,1990.3,1990.2,46.72725]
[1742478659389,2.35847,1990.3,1990.2,46.72725]
[1742478659884,2.35847,1990.3,1990.2,44.308]
[1742478660178,1.00535,1990.1,1990.0,47.44434]
[1742478660391,1.3532,1990.3,1990.2,1.0053]
[1742478660593,1.3532,1990.3,1990.2,45.3143]
[1742478660888,2.35845,1990.3,1990.2,45.3143]
[1742478661071,5.96,1990.7,1990.2,46.6965]
[1742478661276,1.0,2866.0,1990.2,46.6965]
[1742478661277,5.96,1991.1,1990.6,5.72055]
[1742478661482,2.51187,1991.3,1990.8,3.2078]
[1742478661779,1.00495,1990.9,1990.8,3.2078]
[1742478661982,1.00499,1990.9,1990.7,3.509]
[1742478662276,1.01246615,1991.0,1990.9,1.00495]
[1742478662483,0.00752615,1991.0,1990.9,1.00495]
[1742478662786,1.01244615,1991.0,1990.8,3.2078]
[1742478662971,0.00752615,1991.0,1990.9,1.00495]
[1742478663475,0.00752615,1991.0,1990.9,6.96495]
[1742478663787,2.51156,1991.6,1990.9,6.96495]
[1742478663981,1.00475,1991.3,1991.2,3.2078]
[1742478664286,5.71908,1991.8,1991.2,3.2078]
[1742478664485,1.00467,1991.5,1991.4,1.0047]
[1742478664980,1.01211615,1991.6,1991.4,4.21245]
[1742478665188,1.00464,1991.5,1991.4,4.21245]
[1742478665386,0.00752615,1991.6,1991.4,3.2078]
[1742478665582,1.34822615,1991.6,1991.4,3.2078]
[1742478665780,1.00464,1991.5,1991.3,10.8113]
[1742478665980,1.0047,1991.4,1991.3,15.02381]
[1742478666180,1.0047,1991.4,1991.3,3.511]
[1742478666383,1.0048,1991.2,1991.1,3.2078]
[1742478666685,2.34547,1991.3,1991.2,1.0048]
[1742478666881,2.34547,1991.3,1991.1,1.00481]
[1742478667186,1.00481,1991.2,1990.9,12.6788]
[1742478667384,1.0049,1991.0,1990.9,6.7188]
[1742478667580,2.34429,1991.1,1991.0,1.0049]
[1742478667781,7.05934,1991.1,1990.7,54.16282]
[1742478668082,1.005,1990.8,1990.7,49.95]
[1742478668572,1.00505,1990.7,1990.6,0.00752615]
[1742478669184,1.0053,1990.2,1990.1,54.15714]
[1742478669491,1.0053,1990.2,1990.1,53.1518]
[1742478669684,1.00529,1990.3,1990.2,1.00528]
[1742478669983,2.32969,1990.3,1990.2,1.00528]
[1742478670585,1.3244,1990.3,1990.2,1.00528]
[1742478670779,0.00752615,1990.4,1990.3,1.00525]
[1742478670983,1.00507,1990.7,1990.3,5.72093]
[1742478671282,1.0051,1990.6,1990.5,3.2078]
[1742478671480,2.32948,1990.7,1990.4,3.52]
[1742478671674,1.3244,1990.5,1990.4,1.0052]
[1742478671887,1.3244,1990.5,1990.2,6.7418]
[1742478672078,1.00522,1990.4,1990.2,6.7418]
[1742478672279,1.00525,1990.3,1990.2,3.537]
[1742478672676,1.0053,1990.2,1990.1,0.00752615]
[1742478673780,1.00555,1989.8,1989.7,1.00554]
[1742478673984,1.00555,1989.8,1989.7,3.2078]
[1742478674190,1.0056,1989.6,1989.5,3.2078]
[1742478675090,1.00565,1989.5,1989.4,0.00752615]
[1742478675280,2.32635,1989.5,1989.4,0.00752615]
[1742478676186,5.53415,1989.5,1989.4,0.00752615]
[1742478676585,5.53415,1989.5,1989.0,3.2078]
[1742478676586,1.00586,1989.1,1989.0,3.2078]
[1742478676788,3.541,1989.4,1989.0,3.2078]
[1742478676994,1.00586,1989.1,1989.0,3.2078]
[1742478677389,1.00582,1989.2,1989.0,3.2078]
[1742478677596,1.3992,1989.1,1989.0,4.21371]
[1742478678193,2.40506,1989.1,1989.0,3.2078]
[1742478678397,2.40506,1989.1,1988.9,1.00593]
[1742478678398,3.07947,1989.1,1988.9,1.00593]
[1742478678588,3.07947,1989.1,1989.0,1.00591]
[1742478678589,2.0736,1989.1,1989.0,1.00591]
[1742478678790,2.0736,1989.1,1988.8,6.7518]
[1742478678990,3.07948,1989.1,1988.9,1.00594]
[1742478679190,1.00592,1989.0,1988.8,48.55778]
[1742478679395,1.4107,1988.9,1988.8,48.55781]
[1742478680196,2.41666,1988.9,1988.8,47.5518]
[1742478680688,1.68029,1989.1,1988.8,48.55781]
[1742478680996,1.01329615,1989.3,1989.1,1.00583]
[1742478681196,1.4107,1989.2,1989.0,3.2078]
[1742478681393,1.4107,1989.2,1988.9,1.3907]
[1742478681898,1.00591,1989.0,1988.9,1.3907]
[1742478682600,1.00596,1988.9,1988.8,6.7518]
[1742478682896,1.00596,1988.9,1988.8,9.11271]
[1742478682897,2.40896,1988.9,1988.8,9.11271]
[1742478683099,2.40896,1988.9,1988.8,4.5627]
[1742478683393,2.40896,1988.9,1988.8,9.10871]
[1742478683593,0.6956,1989.1,1988.8,8.1027]
[1742478683802,2.0986,1989.1,1989.0,1.00591]
[1742478684008,0.00752615,1989.3,1989.0,3.2078]
[1742478684194,0.00752615,1989.3,1989.2,1.00581]
[1742478684498,1.01328615,1989.3,1989.2,4.5627]
[1742478684699,1.00581,1989.2,1989.1,3.538]
[1742478684899,1.00581,1989.2,1988.3,5.96]
[1742478684900,1.00586,1989.1,1988.3,5.96]
[1742478685088,1.00697,1986.9,1986.8,4.5121905]
[1742478685290,1.00697,1986.9,1986.1,17.6812053]
[1742478685291,1.00733,1986.2,1986.1,17.6812053]
[1742478685496,3.2078,1985.9,1984.6,20.1222]
[1742478685795,3.2078,1985.0,1984.5,53.43703386]
[1742478685998,3.2078,1984.6,1982.6,66.72344914]
[1742478686188,3.2078,1983.1,1982.7,20.119]
[1742478686388,3.2078,1984.6,1983.7,20.1222]
[1742478686692,0.27916485,1984.9,1983.7,20.1222]
[1742478686693,3.2078,1984.2,1984.1,1.00839]
[1742478686891,3.2078,1984.2,1984.1,1.0074]
[1742478687092,1.14335862,1984.5,1984.4,1.00824]
[1742478687300,3.2078,1984.6,1984.4,21.1296]
[1742478687594,1.00824,1984.4,1984.3,0.00756468]
[1742478687794,0.00756468,1984.6,1983.5,3.2078]
[1742478688099,3.2078,1984.4,1983.9,21.1296]
[1742478688295,3.2078,1984.6,1984.5,21.1296]
[1742478688496,3.2078,1984.7,1984.5,47.5044]
[1742478688698,3.2078,1984.7,1984.6,41.28815347]
[1742478688893,3.2078,1984.7,1984.6,84.47605347]
[1742478689096,45.73049193,1985.5,1984.6,83.46791347]
[1742478689294,3.2078,1985.9,1985.3,1.0074]
[1742478689498,0.31502266,1985.8,1985.6,3.2078]
[1742478689690,1.01513468,1985.8,1985.6,3.2078]
[1742478689890,5.449,1986.9,1985.6,3.2078]
[1742478690091,2.51705,1987.2,1986.8,3.2078]
[1742478690304,0.92937339,1986.9,1986.8,2.19583]
[1742478690702,1.00702,1986.8,1986.7,46.497]
[1742478691003,1.00702,1986.8,1986.7,41.49460001]
[1742478691398,1.00702,1986.8,1986.7,38.15371001]
[1742478691598,1.00702,1986.8,1986.7,37.10980001]
[1742478691804,1.00702,1986.8,1986.7,35.81240001]
[1742478692104,1.00743,1986.0,1985.9,3.2078]
[1742478692297,2.51845,1986.1,1985.7,49.7248]
[1742478692599,0.96869524,1985.8,1985.7,49.7248]
[1742478693203,0.96869524,1985.8,1985.7,49.76363476]
[1742478693896,0.00756468,1985.9,1985.7,69.33073781]
[1742478694096,0.00756468,1985.9,1985.8,21.1264]
[1742478694298,0.00756468,1985.9,1985.8,22.13393]
[1742478694504,0.00756468,1985.9,1985.8,21.1264]
[1742478694700,0.00756468,1985.9,1985.8,0.04831252]
[1742478694903,1.00758,1985.7,1985.6,0.00756468]
[1742478695099,1.00783,1985.2,1985.1,3.0866768]
[1742478695303,1.00783,1985.2,1985.1,49.6166768]
[1742478695500,1.00783,1985.2,1985.1,50.6240768]
[1742478695709,1.00783,1985.2,1985.1,46.53]
[1742478696506,2.5191,1985.6,1985.2,1.0078]
[1742478696705,22.68444734,1985.7,1985.6,1.00763]
[1742478696913,22.68444734,1985.7,1985.6,22.13723]
[1742478697108,22.68444734,1985.7,1985.6,42.25623]
[1742478697414,23.69202734,1985.7,1985.6,83.05623]
[1742478697911,1.00758,1985.7,1985.6,82.0486]
[1742478698105,1.00758,1985.7,1985.6,24.10658611]
[1742478698305,1.00758,1985.7,1985.6,25.51438611]
[1742478698611,1.00758,1985.7,1985.6,4.38455611]
[1742478698906,1.00763,1985.6,1985.5,3.2078]
[1742478699113,1.00763,1985.6,1985.5,49.7508]
[1742478699311,1.00763,1985.6,1985.5,72.84975611]
[1742478699513,0.00756468,1985.9,1985.5,78.21775611]
[1742478699816,1.00758,1985.8,1985.7,1.65919515]
[1742478700306,1.00763,1985.6,1985.5,55.1188]
[1742478700512,3.2078,1985.7,1984.9,3.2078]
[1742478700708,3.2078,1985.7,1984.5,2.52047]
[1742478700709,4.21558,1985.3,1985.2,43.864]
[1742478700909,1.00814,1984.6,1984.5,21.65078803]
[1742478701213,2.51985,1985.0,1984.6,2.97675611]
[1742478701411,1.00807,1984.8,1984.7,4.21585]
[1742478701611,1.00802,1984.9,1984.7,6.18455611]
[1742478701911,1.00802,1984.9,1984.8,2.97675611]
[1742478702810,1.00799,1984.9,1984.8,3.98475611]
[1742478703006,0.00756468,1985.0,1984.9,1.00799]
[1742478703206,7.57533594,1985.0,1984.9,7.19254611]
[1742478703423,6.49813594,1985.0,1984.9,7.19254611]
[1742478703707,6.49813594,1985.0,1984.9,4.21579]
[1742478704609,3.79155402,1985.1,1985.0,1.00793]
[1742478704813,3.79155402,1985.1,1984.8,2.20658189]
[1742478705011,3.79155402,1985.1,1985.0,1.00793]
[1742478705212,5.67598401,1985.2,1985.1,1.00788]
[1742478705519,2.5189,1985.8,1985.1,1.00788]
[1742478705520,1.00751,1985.9,1985.8,1.00748]
[1742478705811,1.00747,1986.0,1985.9,1.00744]
[1742478706014,1.00743,1986.0,1985.9,6.29843]
[1742478706308,1.45577599,1986.0,1985.9,6.29848]
[1742478706707,0.44834599,1986.0,1985.9,6.29848]
[1742478707413,1.45577599,1986.0,1985.9,6.29848]
[1742478707616,0.44834599,1986.0,1985.9,6.29848]
[1742478708005,1.45577599,1986.0,1985.9,6.29848]
[1742478708410,1.00748,1985.9,1985.8,0.00756468]
[1742478708809,4.21528,1985.9,1985.8,0.00756468]
[1742478709011,2.17600754,1985.9,1985.8,0.00756468]
[1742478709415,1.16852754,1985.9,1985.8,1.01509468]
[1742478709804,0.09182754,1985.9,1985.8,4.22289468]
[1742478710010,0.00756468,1986.1,1986.0,1.00743]
[1742478710215,0.00756468,1986.1,1986.0,4.21523]
[1742478710610,1.00743,1986.0,1985.9,1.00745]
[1742478710812,0.00756468,1986.1,1985.9,1.00744]
[1742478711007,1.00747,1986.0,1985.9,1.00744]
[1742478711217,1.00748,1985.9,1985.8,1.01504468]
[1742478711422,1.00748,1985.9,1985.8,1.31016468]
[1742478712416,1.00748,1985.9,1985.8,2.31769468]
[1742478713008,4.21524,1986.0,1985.9,1.00748]
[1742478713214,1.01497468,1986.1,1986.0,1.00743]
[1742478713410,1.00743,1986.0,1985.9,1.00744]
[1742478713721,5.194,1986.0,1985.3,46.551]
[1742478713921,1.00773,1985.4,1985.3,47.55878]
[1742478714124,1.00773,1985.4,1985.3,46.551]
[1742478715018,1.00771,1985.5,1985.4,1.00768]
[1742478715225,1.00773,1985.4,1985.3,46.551]
[1742478715423,1.00773,1985.4,1985.3,47.55878]
[1742478715719,1.00773,1985.4,1985.3,46.551]
[1742478715913,3.50773,1985.4,1985.3,46.551]
[1742478716115,4.94233,1985.4,1985.3,45.43542245]
[1742478716315,2.44233,1985.4,1985.3,45.43542245]
[1742478716622,1.00773,1985.4,1985.3,45.43542245]
[1742478716818,1.00773,1985.4,1985.3,44.30119231]
[1742478718124,1.0077,1985.5,1985.4,1.00767]
[1742478718326,1.0077,1985.5,1985.3,44.30119231]
[1742478718327,1.00773,1985.4,1985.3,45.30893231]
[1742478718523,14.56842922,1985.4,1985.3,45.30893231]
[1742478718711,14.56842922,1985.4,1985.3,27.1611492]
[1742478719722,13.56069922,1985.4,1985.3,27.1611492]